bitfinex-derivatives/quotes_ETHF0:USTF0_20210702
["timestamp","ask_amount","ask_price","bid_price","bid_amount"]
[1625204917558,22.94,2028.1,2026.5,5.99057]
[1625204917709,17.75,2028.2,2026.5,5.99057]
[1625204917817,2.20527,2027.3,2027.2,2.20527]
[1625204919676,1.0,2028.3,2027.2,2.20527]
[1625204919777,2.20527,2027.7,2027.6,2.20527]
[1625204920280,2.90244819,2028.7,2027.6,2.20527]
[1625204920378,45.37674819,2028.7,2027.6,2.20527]
[1625204920981,50.37674819,2028.7,2027.6,2.20527]
[1625204921129,45.37674819,2028.7,2027.6,2.20527]
[1625204921231,1.90376754,2028.6,2027.6,2.20527]
[1625204921582,45.3783108,2028.7,2027.6,2.20527]
[1625204921833,2.20527,2027.7,2027.6,2.20527]
[1625204922686,5.10927,2027.7,2027.6,2.20527]
[1625204922784,5.10927,2027.7,2026.0,1.0]
[1625204922887,5.10927,2027.7,2024.9,2.88554112]
[1625204923040,1.0,2027.6,2024.9,2.88554112]
[1625204923334,1.0,2027.6,2025.1,2.02005816]
[1625204923486,1.0,2027.6,2025.1,5.62155816]
[1625204923633,1.0,2027.6,2025.1,23.67155816]
[1625204923733,1.0,2027.6,2025.1,21.6515]
[1625204923833,1.0,2027.6,2027.5,2.20527]
[1625204923938,2.20527,2027.7,2027.5,2.20527]
[1625204924084,1.90352734,2028.6,2027.5,2.20527]
[1625204924435,1.90502162,2028.9,2027.5,2.20527]
[1625204924935,1.90489259,2029.0,2027.5,2.20527]
[1625204925789,2.20527,2028.5,2028.4,2.20527]
[1625204925993,2.20527,2028.5,2028.2,2.20527]
[1625204926189,2.20527,2028.5,2027.3,3.3626]
[1625204926992,2.20527,2028.5,2026.5,15.6305]
[1625204927845,2.20527,2028.0,2027.7,2.20527]
[1625204927945,5.43787,2028.0,2027.7,2.20527]
[1625204928148,52.21567,2028.0,2027.7,2.20527]
[1625204928395,52.21567,2028.0,2027.7,2.15527]
[1625204928498,57.21567,2028.0,2027.7,2.15527]
[1625204928999,52.21567,2028.0,2027.7,2.15527]
[1625204929849,2.20527,2027.8,2027.7,2.15527]
[1625204930149,2.20527,2027.8,2026.5,15.6305]
[1625204931253,7.20527,2027.8,2026.5,15.6305]
[1625204931355,17.79,2027.7,2026.5,15.6305]
[1625204931758,22.79,2027.7,2026.5,15.6305]
[1625204931857,2.20527,2026.8,2026.7,2.20527]
[1625204932860,47.7778,2028.0,2026.7,2.20527]
[1625204932960,46.7778,2028.0,2026.7,2.20527]
[1625204933812,2.20527,2027.1,2026.7,2.20527]
[1625204933915,5.31727,2027.1,2026.7,2.20527]
[1625204937837,5.31727,2027.1,2027.0,2.20527]
[1625204938138,2.20527,2027.1,2027.0,2.20527]
[1625204942551,2.20527,2027.1,2027.0,5.53537]
[1625204944855,2.20527,2027.1,2027.0,2.20527]
[1625204948364,2.20527,2027.1,2027.0,5.25967]
[1625204948916,1.0,2028.3,2027.0,5.25967]
[1625204949015,1.90532131,2028.8,2027.0,5.25967]
[1625204949418,1.90720774,2029.2,2027.0,5.25967]
[1625204949968,2.20527,2028.8,2028.7,2.20527]
[1625204950071,2.20527,2028.8,2028.7,5.68927]
[1625204951167,2.91096703,2030.0,2028.7,5.68927]
[1625204951268,1.91096703,2030.0,2028.7,5.68927]
[1625204951570,1.91185553,2030.1,2028.7,5.68927]
[1625204951919,2.20527,2029.6,2029.5,2.20527]
[1625204952370,2.20527,2029.6,2029.5,1.03884199]
[1625204952970,2.20527,2029.6,2028.7,3.484]
[1625204953074,5.63997,2029.6,2028.1,55.0102]
[1625204953827,5.63997,2029.6,2026.9,0.9886]
[1625204953946,2.20527,2029.1,2029.0,2.20527]
[1625204954027,5.17167,2029.1,2029.0,2.20527]
[1625204955726,2.20527,2029.1,2029.0,2.20527]
[1625204955986,1.91101003,2030.1,2029.0,2.20527]
[1625204956193,2.73001433,2030.2,2029.0,2.20527]
[1625204956194,1.90842419,2030.2,2029.0,2.20527]
[1625204956489,1.90774601,2030.3,2029.0,2.20527]
[1625204957087,6.90774601,2030.3,2029.0,2.20527]
[1625204957290,1.90774601,2030.3,2029.0,2.20527]
[1625204957941,2.20527,2029.1,2029.0,2.20527]
[1625204961056,3.7206,2030.2,2029.0,2.20527]
[1625204961863,62.8434,2030.2,2029.0,2.20527]
[1625204962010,2.20527,2029.5,2029.3,2.20527]
[1625204962111,5.15607,2029.5,2029.3,2.20527]
[1625204969380,10.15607,2029.5,2027.8,15.9414]
[1625204969847,62.4276,2028.6,2026.7,1.0]
[1625204969984,2.20527,2027.6,2027.4,2.20527]
[1625204970183,5.32187,2027.6,2026.1,31.0182]
[1625204972012,2.20527,2027.0,2026.9,2.20527]
[1625204973011,3.2579,2027.1,2026.9,2.20527]
[1625204973510,1.0,2028.5,2026.9,5.17557]
[1625204973670,1.35648098,2029.1,2026.9,5.17557]
[1625204973963,1.35664458,2029.2,2026.9,5.17557]
[1625204974063,4.41054,2027.0,2026.9,2.9703]
[1625204974561,2.7566,2027.1,2026.9,2.9703]
[1625204974665,2.7566,2027.1,2026.7,2.20527]
[1625204975514,4.481,2028.2,2026.7,2.20527]
[1625204975613,3.481,2028.2,2026.7,2.20527]
[1625204976063,2.20527,2026.9,2026.7,4.41054]
[1625204977521,1.0,2028.1,2026.7,4.41054]
[1625204977624,1.0,2028.8,2026.7,8.02224]
[1625204977726,1.35601649,2029.0,2026.7,8.02224]
[1625204978091,2.20527,2027.5,2027.4,4.53257]
[1625204978657,1.35601649,2029.0,2027.4,4.53257]
[1625204978763,58.37950663,2029.1,2027.4,4.53257]
[1625204979055,57.0226,2029.1,2027.4,4.53257]
[1625204979356,62.0226,2029.1,2027.4,4.53257]
[1625204979857,62.0226,2029.1,2027.4,2.3273]
[1625204980058,4.41054,2027.5,2027.4,2.3273]
[1625204980159,4.41054,2027.5,2027.1,2.20527]
[1625204982060,4.41054,2027.5,2027.4,2.20527]
[1625204982158,4.41054,2027.5,2027.4,5.64087]
[1625204982710,6.0,2028.8,2027.4,5.64087]
[1625204982810,5.0,2028.8,2027.4,5.64087]
[1625204983666,1.3570017,2029.1,2027.4,5.64087]
[1625204983917,1.3567952,2029.2,2027.4,5.64087]
[1625204984116,2.20527,2028.5,2028.3,2.20527]
[1625204984219,2.20527,2028.5,2028.3,2.5353]
[1625204986067,2.20527,2028.4,2028.3,2.5353]
[1625204986268,2.20527,2028.4,2028.0,2.20527]
[1625204988073,2.20527,2028.4,2028.3,2.20527]
[1625204988374,2.20527,2028.4,2028.0,2.20527]
[1625204988773,2.20527,2028.4,2027.2,51.5989]
[1625204989875,2.20527,2028.4,2026.7,3.6117]
[1625204989977,2.20527,2028.4,2026.1,36.0182]
[1625204990125,3.20527,2028.4,2028.3,2.20527]
[1625204990277,2.20527,2028.4,2028.3,2.20527]
[1625204990828,2.20527,2028.5,2028.3,2.20527]
[1625204993584,2.20527,2028.5,2028.2,3.6111]
[1625204993733,2.20527,2028.5,2028.1,2.20527]
[1625204993983,2.20527,2028.5,2026.8,64.9541]
[1625204994085,2.20527,2028.5,2026.8,63.9541]
[1625204994235,2.20527,2028.0,2027.9,2.20527]
[1625204995389,2.20527,2028.5,2027.9,2.20527]
[1625204995488,2.20527,2028.5,2027.9,4.56217]
[1625204996141,2.20527,2028.5,2028.4,2.20527]
[1625204999661,2.20527,2028.5,2028.4,5.32697]
[1625205000469,2.36184236,2029.6,2028.4,5.32697]
[1625205000570,1.36184236,2029.6,2028.4,5.32697]
[1625205001477,1.0,2029.9,2029.4,59.1138]
[1625205001577,1.36343578,2030.0,2029.4,2.9073]
[1625205001779,6.90881009,2030.1,2028.4,6.32697]
[1625205001780,6.90881009,2030.1,2028.4,3.20527]
[1625205001880,2.5318,2030.0,2028.4,2.20527]
[1625205002175,2.5318,2030.0,2027.9,2.20527]
[1625205002176,2.20527,2029.3,2029.1,2.20527]
[1625205003979,5.75637,2029.3,2029.1,2.20527]
[1625205004231,7.96164,2029.3,2029.1,2.20527]
[1625205013373,5.75637,2029.3,2029.1,2.20527]
[1625205013474,2.20527,2029.3,2029.1,2.20527]
[1625205013975,4.4035,2030.4,2029.1,2.20527]
[1625205014076,3.4035,2030.4,2029.1,2.20527]
[1625205014274,2.20527,2029.8,2029.7,2.20527]
[1625205015026,3.4035,2030.4,2029.7,2.20527]
[1625205015128,1.0,2030.9,2029.7,5.99637]
[1625205015229,1.36744318,2031.0,2029.7,5.99637]
[1625205015981,1.3676344,2031.2,2029.7,5.99637]
[1625205016282,2.20527,2030.8,2030.7,2.20527]
[1625205017987,2.368174,2031.6,2030.7,2.20527]
[1625205018086,1.9154436,2031.7,2030.7,2.20527]
[1625205018087,1.36733831,2031.7,2030.7,4.82887]
[1625205018287,2.20527,2031.5,2031.3,2.20527]
[1625205018387,2.20527,2031.5,2031.3,5.28087]
[1625205019490,2.20527,2031.5,2031.3,4.11528739]
[1625205019793,2.20527,2031.5,2031.3,1.03968739]
[1625205020293,2.20527,2031.4,2031.3,1.03968739]
[1625205020791,2.20527,2031.4,2030.7,2.20527]
[1625205022292,2.20527,2031.4,2031.3,2.20527]
[1625205024374,2.20527,2031.5,2031.3,2.20527]
[1625205025283,2.20527,2031.5,2030.7,2.20527]
[1625205025378,4.65197,2031.5,2029.5,1.0]
[1625205025477,1.0,2031.4,2029.4,14.9689]
[1625205025929,6.0,2031.4,2029.4,14.9689]
[1625205026331,2.20527,2030.5,2030.3,2.20527]
[1625205026479,5.35817,2030.5,2030.3,2.20527]
[1625205027783,2.20527,2030.5,2030.3,2.20527]
[1625205028286,1.0,2031.3,2030.3,2.20527]
[1625205028388,2.20527,2031.1,2030.9,2.20527]
[1625205028589,2.20527,2031.3,2030.9,2.20527]
[1625205029640,4.96107,2031.3,2030.3,2.20527]
[1625205030342,2.20527,2030.4,2030.3,2.20527]
[1625205030541,5.36317,2030.4,2030.3,2.20527]
[1625205032445,2.20527,2030.4,2030.3,2.20527]
[1625205032848,1.0,2031.2,2030.3,2.20527]
[1625205032949,3.6515,2032.0,2030.3,2.20527]
[1625205033958,4.6515,2032.0,2030.3,2.20527]
[1625205034359,2.20527,2030.9,2030.8,2.20527]
[1625205036415,4.41054,2030.9,2030.8,2.20527]
[1625205038442,2.20527,2030.9,2030.8,2.20527]
[1625205039645,7e-05,2030.9,2030.8,2.20527]
[1625205039802,1.0,2031.9,2030.8,2.20527]
[1625205039898,4.759,2032.1,2030.8,2.20527]
[1625205040454,2.20527,2031.7,2031.5,2.20527]
[1625205040554,5.57567,2031.7,2031.5,2.20527]
[1625205041408,5.57567,2031.7,2031.5,1.03993585]
[1625205042469,2.20527,2031.6,2031.5,1.03993585]
[1625205044924,3.3704,2031.7,2031.5,1.03993585]
[1625205045023,4.759,2032.1,2031.5,1.03993585]
[1625205045135,4.759,2032.1,2031.5,3.50763585]
[1625205045136,0.0001,2032.1,2031.5,3.50763585]
[1625205045330,1.0,2032.7,2031.5,3.50763585]
[1625205045429,1.36406528,2033.7,2031.5,3.50763585]
[1625205045581,1.36465924,2033.9,2031.5,3.50763585]
[1625205045677,6.12365924,2033.9,2031.5,3.50763585]
[1625205045779,4.759,2033.9,2031.9,47.8669]
[1625205046077,1.0,2033.8,2031.9,47.8669]
[1625205046427,2.20527,2033.3,2033.1,2.20527]
[1625205047635,2.20527,2033.3,2032.9,2.20527]
[1625205048496,2.20527,2033.0,2032.9,2.20527]
[1625205050154,2.20527,2033.0,2032.5,2.20527]
[1625205050510,2.20527,2032.6,2032.5,2.20527]
[1625205051457,2.20527,2032.6,2032.1,2.20527]
[1625205052168,2.20527,2032.6,2031.6,15.419]
[1625205052469,2.20527,2032.0,2031.7,2.20527]
[1625205052669,5.75947,2032.0,2031.7,2.20527]
[1625205054176,3.5542,2032.0,2031.7,2.20527]
[1625205054281,2.20527,2032.6,2031.7,2.20527]
[1625205054481,4.41054,2032.6,2032.3,2.20527]
[1625205056535,4.41054,2032.6,2032.3,4.41054]
[1625205058488,2.20527,2032.6,2032.3,4.41054]
[1625205062247,2.20527,2033.0,2032.3,4.41054]
[1625205062494,4.41054,2033.0,2032.9,2.20527]
[1625205062697,2.20527,2033.0,2032.9,2.20527]
[1625205063052,2.20527,2033.0,2032.3,2.20527]
[1625205063508,51.91447,2033.0,2032.3,2.20527]
[1625205063850,2.20527,2033.0,2032.3,2.20527]
[1625205064499,2.20527,2033.0,2032.9,2.20527]
[1625205069030,2.20527,2033.0,2032.7,3.5347]
[1625205069782,48.4602,2032.9,2032.3,2.20527]
[1625205070339,2.20527,2033.0,2032.3,2.20527]
[1625205070440,2.20527,2033.0,2032.3,5.93297]
[1625205070540,2.20527,2033.0,2032.6,2.20527]
[1625205072596,2.20527,2032.7,2032.6,4.41054]
[1625205077874,2.20527,2033.0,2032.6,4.41054]
[1625205077973,2.20527,2033.0,2032.6,7.24444]
[1625205081544,2.20527,2033.2,2032.6,64.14854]
[1625205081749,2.20527,2033.2,2032.6,7.24444]
[1625205081951,2.20527,2033.2,2032.6,5.03917]
[1625205082100,2.20527,2033.2,2032.6,2.20527]
[1625205082195,2.20527,2033.2,2031.6,1.0]
[1625205082292,51.2769,2032.8,2031.5,14.9104]
[1625205082741,2.20527,2032.3,2032.2,2.20527]
[1625205084303,2.20527,2032.5,2032.2,2.20527]
[1625205084652,2.20527,2032.5,2032.3,2.20527]
[1625205085151,2.20527,2032.5,2031.5,14.9104]
[1625205085765,5.0,2032.4,2031.5,14.9104]
[1625205085905,5.0,2032.4,2031.1,14.8711]
[1625205086256,53.6531,2032.0,2031.1,14.8711]
[1625205086409,2.84,2032.0,2031.1,14.8711]
[1625205086659,2.84,2032.0,2031.9,4.41054]
[1625205086760,2.84,2032.0,2031.5,3.1754]
[1625205087709,2.20527,2032.2,2031.5,3.1754]
[1625205087919,2.20527,2032.2,2031.1,14.8711]
[1625205088058,5.06517,2032.2,2031.1,14.8711]
[1625205088610,5.06517,2032.2,2030.0,1.0]
[1625205088770,5.61467,2031.0,2030.9,2.20527]
[1625205090718,7.81994,2031.0,2030.9,2.20527]
[1625205092882,8.79614,2031.0,2030.9,3.20377]
[1625205092981,7.81994,2031.0,2030.9,0.36867]
[1625205093081,12.81994,2031.0,2029.6,1.0]
[1625205093184,12.81994,2031.0,2029.5,14.5739]
[1625205093435,7.81994,2031.0,2029.5,14.5739]
[1625205094540,7.81994,2031.0,2029.5,76.2137]
[1625205094740,2.20527,2030.2,2030.1,2.20527]
[1625205094842,2.20527,2030.2,2030.1,4.60827]
[1625205095838,2.20527,2030.2,2030.1,2.20527]
[1625205096689,4.41054,2030.2,2030.1,2.20527]
[1625205098100,5.39164,2030.2,2030.1,2.20527]
[1625205100862,8.51344,2030.2,2028.9,1.0]
[1625205100955,8.51344,2030.2,2028.7,1.43833366]
[1625205101107,13.51344,2030.2,2028.7,1.43833366]
[1625205102308,8.51344,2030.2,2028.7,1.43833366]
[1625205102407,5.0,2030.1,2028.7,1.43833366]
[1625205102558,8.51344,2030.2,2028.7,1.43833366]
[1625205102708,2.20527,2028.9,2028.8,2.20527]
[1625205104769,2.20527,2029.7,2028.8,2.20527]
[1625205104916,2.20527,2029.7,2028.8,5.17967]
[1625205106633,2.20527,2029.7,2028.8,2.20527]
[1625205106733,4.41054,2028.9,2028.8,2.20527]
[1625205106834,7.24464,2028.9,2028.8,2.20527]
[1625205112649,7.24464,2028.9,2028.7,1.43833366]
[1625205113562,7.24464,2028.9,2028.7,0.47863366]
[1625205114207,7.24464,2028.9,2028.7,3.366e-05]
[1625205114307,12.24464,2028.9,2028.5,1.31570097]
[1625205114418,12.24464,2028.9,2028.5,0.35570097]
[1625205114810,2.20527,2028.6,2028.5,0.35570097]
[1625205122496,5.08897,2028.6,2028.5,0.35570097]
[1625205129525,5.08897,2028.6,2028.5,9.7e-07]
[1625205132856,2.20527,2028.6,2028.5,9.7e-07]
[1625205133112,2.20527,2028.6,2028.5,3.14900097]
[1625205134210,3.18697,2028.6,2028.5,3.14900097]
[1625205134873,2.20527,2028.6,2028.5,3.14900097]
[1625205137529,2.20527,2028.6,2028.5,3.149]
[1625205138176,2.20527,2028.6,2028.0,2.20527]
[1625205138977,2.20527,2028.3,2028.0,4.41054]
[1625205139226,2.20527,2028.6,2028.0,4.41054]
[1625205139329,2.20527,2028.6,2028.0,7.27414]
[1625205140734,2.20527,2028.6,2028.0,51.66164]
[1625205141037,2.20527,2028.6,2028.5,2.20527]
[1625205141133,2.20527,2028.6,2028.5,5.69087]
[1625205143741,1.0,2029.7,2028.5,5.69087]
[1625205143848,0.9809,2029.8,2028.5,5.69087]
[1625205143942,1.0,2030.0,2028.5,5.69087]
[1625205144043,53.6861,2031.6,2028.5,5.69087]
[1625205144143,5.0,2031.0,2028.5,6.69087]
[1625205144505,5.0,2031.0,2029.1,55.4781]
[1625205144604,5.0,2031.0,2029.1,58.9918]
[1625205144806,16.084,2031.1,2029.1,58.9918]
[1625205144907,17.084,2031.1,2029.1,58.9918]
[1625205145007,2.20527,2030.8,2030.7,2.20527]
[1625205145109,2.20527,2030.8,2030.7,4.94267]
[1625205145608,2.20527,2030.8,2030.7,2.7374]
[1625205146010,2.20527,2030.8,2030.7,1.57166392]
[1625205147013,2.20527,2030.8,2030.7,3.77693392]
[1625205149425,2.20527,2030.9,2030.7,3.77693392]
[1625205149924,2.20527,2030.9,2030.7,2.20527]
[1625205150525,2.20527,2030.9,2030.6,2.20527]
[1625205151033,4.41054,2030.9,2030.6,4.41054]
[1625205151330,54.6861,2031.6,2030.6,4.41054]
[1625205151479,53.6861,2031.6,2030.6,4.41054]
[1625205152182,58.6861,2031.6,2030.6,4.41054]
[1625205153033,4.41054,2030.7,2030.6,4.41054]
[1625205153136,9.17274,2030.7,2030.6,4.41054]
[1625205153436,66.94744,2030.7,2030.6,4.41054]
[1625205154089,9.17274,2030.7,2030.6,4.41054]
[1625205159159,8.17444,2030.7,2030.6,4.41054]
[1625205159258,4.41054,2030.7,2030.6,4.41054]
[1625205159525,1.0,2031.5,2030.6,4.41054]
[1625205159630,6.11009736,2032.3,2030.6,4.41054]
[1625205159726,1.0,2032.2,2030.6,4.41054]
[1625205159827,6.11009736,2032.3,2030.6,4.41054]
[1625205160133,4.759,2032.3,2030.6,4.41054]
[1625205160281,5.0,2032.2,2030.6,4.41054]
[1625205161083,2.20527,2031.4,2031.3,2.20527]
[1625205163087,4.41054,2031.4,2031.3,2.20527]
[1625205165108,57.84224,2031.4,2031.3,2.20527]
[1625205165761,57.84224,2031.4,2031.1,2.20527]
[1625205166263,4.41054,2031.4,2031.1,2.20527]
[1625205166364,0.9805,2031.6,2031.1,2.20527]
[1625205166464,1.0,2032.2,2031.1,4.68597]
[1625205166564,4.759,2032.3,2031.1,4.68597]
[1625205167214,2.20527,2031.9,2031.8,2.20527]
[1625205167816,4.49537,2031.9,2031.8,1.04010195]
[1625205167965,4.49537,2031.9,2031.6,2.20527]
[1625205168266,4.49537,2031.9,2030.5,53.0113]
[1625205168366,4.49537,2031.9,2030.5,52.0113]
[1625205168719,4.49537,2031.9,2029.4,67.7769]
[1625205168822,1.0,2031.8,2029.4,67.7769]
[1625205169220,2.20527,2030.9,2030.7,2.20527]
[1625205169319,5.99427,2030.9,2030.7,2.20527]
[1625205169468,3.789,2030.9,2030.7,2.20527]
[1625205172476,1.9985,2031.7,2030.7,2.20527]
[1625205172575,4.759,2031.8,2030.7,2.20527]
[1625205173178,2.20527,2031.2,2031.1,2.20527]
[1625205173280,5.63627,2031.2,2031.1,2.20527]
[1625205174239,2.20527,2031.2,2031.1,2.20527]
[1625205174739,1.0,2032.1,2031.1,2.20527]
[1625205174840,20.7388,2032.3,2031.1,2.20527]
[1625205175041,4.759,2032.3,2031.1,2.20527]
[1625205175239,2.20527,2031.6,2031.4,2.20527]
[1625205177221,4.41054,2031.6,2031.4,2.20527]
[1625205183230,4.41054,2031.6,2031.5,2.20527]
[1625205184892,5.7317,2032.3,2031.5,2.20527]
[1625205184991,4.759,2032.3,2031.5,2.20527]
[1625205185291,4.759,2032.3,2032.2,4.41054]
[1625205185391,2.20527,2032.6,2032.2,4.41054]
[1625205185796,2.20527,2032.6,2032.2,3.24566626]
[1625205187270,2.20527,2032.6,2032.5,2.20527]
[1625205187571,2.20527,2032.6,2032.2,1.04039626]
[1625205189277,2.20527,2032.3,2032.2,3.24566626]
[1625205196212,2.20527,2032.3,2032.2,1.04039626]
[1625205199475,2.20527,2032.3,2030.8,1.0]
[1625205199577,7.20527,2032.3,2030.3,16.2955]
[1625205199681,1.0,2032.2,2030.3,15.2955]
[1625205200475,17.93,2032.1,2030.3,15.2955]
[1625205200575,42.1932,2030.9,2030.3,15.2955]
[1625205200827,44.5382,2030.9,2030.3,15.2955]
[1625205200927,44.5382,2030.9,2028.5,53.0678]
[1625205201028,1.0,2030.8,2028.5,52.0678]
[1625205201429,4.87357,2030.1,2030.0,2.20527]
[1625205202831,2.6683,2030.1,2030.0,2.20527]
[1625205202932,2.20527,2030.4,2030.0,2.20527]
[1625205205542,2.20527,2030.1,2030.0,2.20527]
[1625205205791,3.345,2030.9,2030.0,2.20527]
[1625205205940,0.9789,2031.0,2030.0,2.20527]
[1625205206944,1.0,2031.6,2030.0,2.20527]
[1625205207044,5.0,2031.7,2030.0,2.20527]
[1625205207146,6.0,2031.7,2030.0,2.20527]
[1625205207494,2.20527,2030.5,2030.4,2.20527]
[1625205210925,4.82447,2030.5,2030.4,2.20527]
[1625205211625,4.82447,2030.5,2030.0,2.20527]
[1625205213428,2.20527,2030.1,2030.0,2.20527]
[1625205213830,3.20437,2030.1,2030.0,2.20527]
[1625205213931,2.20527,2030.1,2030.0,2.20527]
[1625205214031,5.41377,2030.1,2029.4,15.2497]
[1625205214580,56.3472,2029.6,2029.4,15.2497]
[1625205214730,59.8074,2029.6,2028.0,15.8104]
[1625205215538,2.20527,2029.4,2029.3,2.20527]
[1625205218141,2.20527,2029.4,2029.3,7e-05]
[1625205218281,7.20527,2029.4,2028.1,1.0]
[1625205218362,7.20527,2029.4,2028.0,15.8104]
[1625205218922,58.9764,2028.2,2028.0,15.8104]
[1625205219121,2.653,2028.2,2028.0,15.8104]
[1625205219281,2.653,2028.2,2027.4,15.8754]
[1625205219473,2.653,2028.2,2028.1,4.41054]
[1625205220427,2.20527,2028.6,2028.1,4.41054]
[1625205221478,2.20527,2028.6,2028.5,2.20527]
[1625205225439,53.38597,2028.6,2028.5,2.20527]
[1625205226243,2.20527,2028.6,2028.5,2.20527]
[1625205226843,60.23457,2028.6,2028.5,2.20527]
[1625205227144,2.20527,2028.6,2028.5,2.20527]
[1625205228547,2.20527,2028.6,2028.1,2.20527]
[1625205229600,2.20527,2028.6,2028.4,2.20527]
[1625205230253,5.92437,2028.6,2028.1,2.20527]
[1625205230353,51.6071,2028.2,2028.1,2.20527]
[1625205231204,5.92437,2028.6,2028.1,2.20527]
[1625205231657,2.20527,2028.2,2028.1,2.20527]
[1625205231854,2.20527,2028.2,2027.8,2.20527]
[1625205231955,58.1583,2028.0,2027.8,2.20527]
[1625205232056,61.4409,2028.0,2027.8,2.20527]
[1625205233559,2.20527,2027.9,2027.8,2.20527]
[1625205235863,2.20527,2027.9,2027.8,7e-05]
[1625205235964,3.20527,2027.9,2026.4,14.1644]
[1625205236165,8.20527,2027.9,2026.4,14.1644]
[1625205236414,3.20527,2027.9,2026.4,14.1644]
[1625205236515,50.0786,2027.1,2026.4,14.1644]
[1625205237616,4.41054,2026.5,2026.4,14.1644]
[1625205237868,4.41054,2026.5,2026.3,16.91247]
[1625205238275,1.9752,2027.9,2026.3,2.20527]
[1625205238374,1.9752,2027.9,2026.3,5.29627]
[1625205238476,51.5383,2027.5,2026.3,5.29627]
[1625205238579,1.0,2027.4,2026.3,5.29627]
[1625205239437,1.0,2027.7,2026.3,5.29627]
[1625205239688,2.20527,2027.4,2027.3,2.20527]
[1625205239790,3.20527,2027.4,2027.3,2.20527]
[1625205240688,2.20527,2027.4,2027.3,2.20527]
[1625205241190,3.20527,2027.4,2027.3,2.20527]
[1625205241691,2.20527,2027.4,2027.3,2.20527]
[1625205241791,2.20527,2027.8,2027.3,2.20527]
[1625205241892,3.20527,2027.8,2027.3,5.01347]
[1625205242443,2.20527,2027.8,2027.3,5.01347]
[1625205242543,0.9857,2028.7,2027.3,5.01347]
[1625205242643,0.9778,2029.3,2027.3,5.01347]
[1625205242744,1.34253934,2029.6,2027.3,5.01347]
[1625205242945,1.0,2029.5,2027.3,5.01347]
[1625205243693,2.20527,2028.5,2028.3,5.13897]
[1625205244247,3.20527,2028.5,2028.3,5.13897]
[1625205244696,1.0,2028.5,2028.3,5.13897]
[1625205245246,0.9849,2029.8,2028.3,5.13897]
[1625205245353,1.9849,2029.8,2028.3,5.13897]
[1625205245502,1.0,2029.8,2028.3,5.13897]
[1625205245649,2.20527,2029.0,2028.9,2.20527]
[1625205245749,56.96907,2029.0,2028.9,5.26127]
[1625205245856,3.20527,2029.0,2028.9,5.26127]
[1625205247660,5.41054,2029.0,2028.9,5.26127]
[1625205249132,5.7428,2030.4,2028.9,5.26127]
[1625205249284,4.759,2030.4,2028.9,5.26127]
[1625205249491,6.34477389,2030.9,2028.9,5.26127]
[1625205249737,2.20527,2030.3,2030.1,5.89987]
[1625205250186,2.20527,2030.3,2030.1,4.73364643]
[1625205250438,2.20527,2030.3,2030.1,1.81806508]
[1625205251657,2.20527,2030.3,2030.2,2.20527]
[1625205252762,2.20527,2030.6,2030.2,2.20527]
[1625205253664,2.20527,2030.6,2030.2,4.41054]
[1625205253665,4.41054,2030.6,2030.2,4.41054]
[1625205255215,0.9704,2031.1,2030.2,4.41054]
[1625205255319,4.759,2031.4,2030.2,7.61604]
[1625205255668,2.20527,2030.8,2030.7,2.20527]
[1625205257673,2.20527,2031.0,2030.7,2.20527]
[1625205257973,3.18627,2031.0,2030.7,2.20527]
[1625205259725,2.20527,2030.9,2030.7,2.20527]
[1625205259973,4.84587,2030.9,2030.7,2.20527]
[1625205265404,4.84587,2030.9,2030.7,1.03940548]
[1625205265759,4.84587,2030.9,2030.6,1.03940548]
[1625205267718,2.20527,2030.7,2030.6,1.03940548]
[1625205280609,2.20527,2030.7,2030.2,2.20527]
[1625205280709,2.20527,2030.7,2029.6,45.3803]
[1625205281761,2.20527,2030.7,2030.3,2.20527]
[1625205283817,2.20527,2030.4,2030.3,2.20527]
[1625205284416,5.99577,2030.4,2030.3,2.20527]
[1625205284720,5.99577,2030.4,2030.1,0.95634]
[1625205284817,10.99577,2030.4,2029.3,31.3862]
[1625205285168,10.99577,2030.4,2029.3,30.5616]
[1625205285319,10.99577,2030.4,2029.3,15.0784]
[1625205285419,1.0,2030.3,2027.8,15.1608]
[1625205285925,2.20527,2028.5,2028.4,2.20527]
[1625205286470,1.0,2029.5,2028.4,2.20527]
[1625205286720,1.0,2029.5,2028.4,4.55397]
[1625205287822,2.20527,2028.6,2028.4,4.55397]
[1625205287922,2.20527,2028.6,2028.4,2.20527]
[1625205290133,5.87087,2028.6,2028.4,2.20527]
[1625205291037,6.87087,2028.6,2027.8,15.1608]
[1625205291895,7.80254,2027.9,2027.6,2.20527]
[1625205293621,1.0,2027.8,2027.6,2.20527]
[1625205295783,4.41054,2027.9,2027.6,2.20527]
[1625205296376,0.9786,2029.1,2027.6,2.20527]
[1625205296480,1.35287224,2029.2,2027.6,2.20527]
[1625205296680,1.35346901,2029.5,2027.6,2.20527]
[1625205296830,1.0,2029.4,2027.6,2.20527]
[1625205297882,2.20527,2028.5,2028.2,2.20527]
[1625205298683,3.20527,2028.5,2028.2,2.20527]
[1625205298787,2.20527,2028.5,2028.2,2.20527]
[1625205299837,2.20527,2028.5,2028.4,2.20527]
[1625205301243,2.20527,2028.5,2028.4,5.53677]
[1625205302854,2.20527,2028.5,2028.4,2.20527]
[1625205304216,3.20527,2028.5,2028.4,2.20527]
[1625205305671,2.20527,2028.5,2028.4,2.20527]